fUST/lending_fUST_20250911
["ID","MTS","AMOUNT","RATE_DAILY","PERIOD"]
[384774398,1757532644218,-151.0,0.00014268,2]
[384774399,1757532644227,-151.0,0.00014268,2]
[384774400,1757532644237,-153.328275,0.00014268,2]
[384774401,1757532644246,-153.328275,0.00014268,2]
[384774402,1757532644256,-151.0,0.00014268,2]
[384774403,1757532644265,-153.328275,0.00014268,2]
[384774404,1757532644275,-153.328275,0.00014268,2]
[384774405,1757532644285,-151.0,0.00014268,2]
[384774406,1757532644295,-1545.797197,0.00014269,2]
[384774407,1757532644304,-1000.0,0.00014321,2]
[384774408,1757532644317,-480.0,0.0001434,2]
[384774409,1757532644328,-480.0,0.0001434,2]
[384774410,1757532644337,-480.0,0.0001434,2]
[384774411,1757532644347,-480.0,0.0001434,2]
[384774412,1757532644357,-480.0,0.0001434,2]
[384774413,1757532644367,-480.0,0.0001434,2]
[384774414,1757532644377,-480.0,0.0001434,2]
[384774415,1757532644386,-480.0,0.0001434,2]
[384774416,1757532644397,-200.17362594,0.00014342,2]
[384774417,1757532644409,-480.0,0.00014342,2]
[384774418,1757532644418,-480.0,0.00014342,2]
[384774419,1757532644428,-151.0,0.00014342,2]
[384774420,1757532644439,-480.0,0.00014342,2]
[384774421,1757532644449,-151.0,0.00014342,2]
[384774422,1757532644458,-151.0,0.00014342,2]
[384774423,1757532644468,-151.0,0.00014342,2]
[384774424,1757532644478,-151.0,0.00014342,2]
[384774425,1757532644488,-151.0,0.00014342,2]
[384774426,1757532644497,-761.271209,0.00014342,2]
[384774427,1757532644507,-761.271209,0.00014342,2]
[384774428,1757532644519,-761.271209,0.00014342,2]
[384774429,1757532644532,-761.271209,0.00014342,2]
[384774430,1757532644541,-151.0,0.00014342,2]
[384774431,1757532644550,-151.0,0.00014342,2]
[384774432,1757532644560,-430.557456,0.00014342,2]
[384774433,1757532644570,-430.557456,0.00014342,2]
[384774434,1757532644580,-430.557456,0.00014342,2]
[384774435,1757532644589,-430.557456,0.00014342,2]
[384774436,1757532644599,-500.0,0.00014343,2]
[384774437,1757532644608,-157.0,0.00014343,2]
[384774438,1757532644618,-186.0,0.00014344,2]
[384774439,1757532644627,-209.44278543,0.00014344,2]
[384774440,1757532644638,-157.0,0.00014344,2]
[384774441,1757532644647,-344.9139761,0.00014444,2]
[384774442,1757532644657,-259.58799711,0.00014517,2]
[384774443,1757532644667,-157.0,0.00014517,2]
[384774444,1757532644677,-480.0,0.0001452,2]
[384774445,1757532644813,-455.46835781,0.0001452,2]
[384774446,1757532644824,-480.0,0.0001452,2]
[384774447,1757532644834,-480.0,0.0001452,2]
[384774448,1757532644844,-480.0,0.0001452,2]
[384774449,1757532644854,-480.0,0.0001452,2]
[384774450,1757532644864,-375.77,0.0001452,2]
[384774451,1757532644873,-480.0,0.0001452,2]
[384774452,1757532644883,-480.0,0.0001452,2]
[384774453,1757532644893,-480.0,0.0001452,2]
[384774454,1757532644902,-480.0,0.0001452,2]
[384774455,1757532644912,-480.0,0.0001452,2]
[384774456,1757532644922,-153.69088299,0.0001452,2]
[384774457,1757532644932,-275.4598848,0.00014614,2]
[384774458,1757532644942,-480.0,0.00014614,2]
[384774459,1757532644951,-480.0,0.00014614,2]
[384774460,1757532644962,-480.0,0.00014614,2]
[384774461,1757532644971,-480.0,0.00014614,2]
[384774462,1757532644981,-480.0,0.00014616,2]
[384774463,1757532644990,-480.0,0.00014616,2]
[384774464,1757532644999,-343.0,0.00014617,2]
[384774465,1757532645010,-157.0,0.00014617,2]
[384774466,1757532645020,-500.0,0.00014617,2]
[384774467,1757532645029,-157.0,0.00014618,2]
[384774468,1757532645038,-151.0,0.00014668,2]
[384774469,1757532645047,-151.0,0.00014668,2]
[384774470,1757532645057,-151.0,0.00014668,2]
[384774471,1757532645066,-151.0,0.00014668,2]
[384774472,1757532645076,-151.0,0.00014668,2]
[384774473,1757532645085,-151.0,0.00014668,2]
[384774474,1757532645094,-151.0,0.00014668,2]
[384774475,1757532645104,-151.0,0.00014668,2]
[384774476,1757532645113,-1000.0,0.00014748,2]
[384774477,1757532645122,-500.0,0.00014768,2]
[384774478,1757532645132,-151.0,0.00014773,2]
[384774479,1757532645142,-151.0,0.00014773,2]
[384774480,1757532645152,-151.0,0.00014773,2]
[384774481,1757532645162,-151.0,0.00014773,2]
[384774482,1757532645171,-151.0,0.00014773,2]
[384774483,1757532645181,-151.0,0.00014773,2]
[384774484,1757532645191,-186.675728,0.00014773,2]
[384774485,1757532645201,-186.675728,0.00014773,2]
[384774486,1757532645210,-186.675728,0.00014773,2]
[384774487,1757532645218,-186.675728,0.00014773,2]
[384774488,1757532645228,-151.0,0.00014773,2]
[384774489,1757532645237,-212.614112,0.00014773,2]
[384774490,1757532645246,-151.0,0.00014773,2]
[384774491,1757532645257,-497.68567008,0.00014775,2]
[384774492,1757532645267,-309.81,0.00014791,2]
[384774493,1757532645276,-480.0,0.00014794,2]
[384774494,1757532645285,-480.0,0.00014794,2]
[384774495,1757532645295,-480.0,0.00014794,2]
[384774496,1757532645305,-480.0,0.00014794,2]
[384774497,1757532645314,-250.1,0.00014794,2]
[384774498,1757532645323,-480.0,0.00014794,2]
[384774499,1757532645332,-273.66,0.00014794,2]
[384774500,1757532645342,-480.0,0.00014794,2]
[384774501,1757532645351,-480.0,0.00014794,2]
[384774502,1757532645360,-160.0,0.00014845,2]
[384774503,1757532645370,-1500.0,0.00014868,2]
[384774504,1757532645379,-480.0,0.00014888,2]
[384774505,1757532645389,-480.0,0.00014888,2]
[384774506,1757532645405,-480.0,0.0001489,2]
[384774507,1757532645422,-157.0,0.00014891,2]
[384774508,1757532645432,-500.0,0.00014891,2]
[384774509,1757532645442,-157.0,0.00014892,2]
[384774510,1757532645451,-1200.0,0.00014898,2]
[384774511,1757532645461,-620.0,0.00014952,2]
[384774512,1757532645470,-10708.77449184,0.00015,2]
[384774513,1757532645479,-480.0,0.00015068,2]
[384774514,1757532645489,-480.0,0.00015068,2]
[384774515,1757532645499,-180.83,0.00015068,2]
[384774516,1757532645508,-334.85758396,0.00015068,2]
[384774517,1757532645517,-398.61,0.00015068,2]
[384774518,1757532645528,-480.0,0.00015068,2]
[384774519,1757532645537,-480.0,0.00015068,2]
[384774520,1757532645546,-231.517763,0.00015068,2]
[384774521,1757532645555,-500.0,0.00015068,2]
[384774522,1757532645566,-480.0,0.00015162,2]
[384774523,1757532645575,-222.3376387,0.00015165,2]
[384774524,1757532645584,-500.0,0.00015165,2]
[384774526,1757532645593,-157.0,0.00015166,2]
[384774527,1757532645602,-160.0,0.00015177,2]
[384774528,1757532645611,-160.0,0.00015177,2]
[384774529,1757532645620,-160.0,0.00015177,2]
[384774530,1757532645629,-233.08191698,0.00015182,2]
[384774531,1757532645638,-417.15472785,0.00015182,2]
[384774533,1757532645648,-160.0,0.00015182,2]
[384774535,1757532645657,-160.0,0.00015182,2]
[384774537,1757532645666,-160.0,0.00015182,2]
[384774538,1757532645676,-160.0,0.00015182,2]
[384774539,1757532645685,-846.88337432,0.00015182,2]
[384774540,1757532645695,-217.67150996,0.00015182,2]
[384774541,1757532645704,-530.87637315,0.00015182,2]
[384774542,1757532645713,-250.0,0.00015195,2]
[384774543,1757532645722,-151.0,0.00015195,2]
[384774544,1757532645731,-250.0,0.00015195,2]
[384774545,1757532645740,-151.0,0.00015195,2]
[384774546,1757532645749,-18603.8837,0.00015195,2]
[384774547,1757532645758,-151.0,0.00015195,2]
[384774548,1757532645767,-151.0,0.00015195,2]
[384774549,1757532645776,-250.0,0.00015195,2]
[384774550,1757532645786,-151.0,0.00015195,2]
[384774551,1757532645795,-151.0,0.00015195,2]
[384774552,1757532645804,-250.0,0.00015195,2]
[384774553,1757532645813,-151.0,0.00015195,2]
[384774554,1757532645822,-151.0,0.00015195,2]
[384774555,1757532645831,-234.19352325,0.00015195,2]
[384774556,1757532645840,-187.8704837,0.00015195,2]
[384774557,1757532645849,-151.0,0.00015195,2]
[384774558,1757532645858,-151.0,0.00015195,2]
[384774559,1757532645867,-151.0,0.00015195,2]
[384774560,1757532645876,-151.0,0.00015195,2]
[384774561,1757532645885,-151.72379802,0.00015195,2]
[384774562,1757532645894,-151.0,0.00015195,2]
[384774563,1757532645904,-151.0,0.00015195,2]
[384774564,1757532645913,-151.0,0.00015195,2]
[384774565,1757532645922,-151.0,0.00015195,2]
[384774566,1757532645932,-151.0,0.00015195,2]
[384774567,1757532645941,-151.0,0.00015195,2]
[384774568,1757532645950,-168.3888056,0.00015195,2]
[384774569,1757532645959,-151.0,0.00015195,2]
[384774570,1757532645969,-151.0,0.00015195,2]
[384774571,1757532645978,-151.0,0.00015195,2]
[384774572,1757532645987,-151.0,0.00015195,2]
[384774573,1757532645996,-151.83333832,0.00015195,2]
[384774574,1757532646005,-151.0,0.00015195,2]
[384774575,1757532646014,-151.0,0.00015195,2]
[384774576,1757532646023,-151.0,0.00015195,2]
[384774577,1757532646031,-500.0,0.00015296,2]
[384774578,1757532646040,-480.0,0.00015342,2]
[384774579,1757532646050,-480.0,0.00015342,2]
[384774580,1757532646059,-480.0,0.00015342,2]
[384774581,1757532646068,-480.0,0.00015342,2]
[384774582,1757532646077,-260.0,0.00015393,2]
[384774583,1757532646086,-2000.0,0.00015416,2]
[384774584,1757532646095,-307.85,0.00015436,2]
[384774585,1757532646104,-500.0,0.00015439,2]
[384774586,1757532646114,-215.0,0.0001544,2]
[384774587,1757532646124,-480.0,0.00015616,2]
[384774588,1757532646133,-480.0,0.00015616,2]
[384774589,1757532646143,-480.0,0.00015616,2]
[384774590,1757532646152,-480.0,0.00015616,2]
[384774591,1757532646162,-409.83904837,0.00015661,2]
[384774592,1757532646171,-415.0,0.00015713,2]
[384774593,1757532646181,-1165.59704368,0.00015874,2]
[384774594,1757532646190,-480.0,0.0001589,2]
[384774595,1757532646200,-480.0,0.0001589,2]
[384774596,1757532646210,-480.0,0.0001589,2]
[384774597,1757532646219,-480.0,0.0001589,2]
[384774598,1757532646228,-151.0,0.00015907,2]
[384774599,1757532646238,-274.599393,0.00015907,2]
[384774600,1757532646247,-274.599393,0.00015907,2]
[384774601,1757532646257,-151.0,0.00015907,2]
[384774602,1757532646267,-274.599393,0.00015907,2]
[384774603,1757532646277,-274.599393,0.00015907,2]
[384774604,1757532646286,-151.0,0.00015907,2]
[384774605,1757532646296,-151.0,0.00015907,2]
[384774606,1757532646305,-151.0,0.00015907,2]
[384774607,1757532646314,-204.982899,0.00015907,2]
[384774608,1757532646323,-183.986532,0.00015907,2]
[384774609,1757532646333,-183.986532,0.00015907,2]
[384774610,1757532646342,-183.986532,0.00015907,2]
[384774611,1757532646351,-183.986532,0.00015907,2]
[384774612,1757532646361,-151.0,0.00015907,2]
[384774613,1757532646370,-151.0,0.00015907,2]
[384774614,1757532646379,-151.0,0.00015907,2]
[384774615,1757532646389,-151.0,0.00015907,2]
[384774616,1757532646404,-151.0,0.00015907,2]
[384774617,1757532646413,-204.345296,0.00015907,2]
[384774618,1757532646422,-151.0,0.00015907,2]
[384774619,1757532646432,-151.0,0.00015907,2]
[384774620,1757532646443,-151.0,0.00015907,2]
[384774621,1757532646452,-360.0,0.00015941,2]
[384774622,1757532646461,-2500.0,0.00015964,2]
[384774623,1757532646470,-480.0,0.00016164,2]
[384774624,1757532646481,-480.0,0.00016164,2]
[384774625,1757532646491,-480.0,0.00016164,2]
[384774626,1757532646501,-480.0,0.00016164,2]
[384774627,1757532646510,-151.0,0.00016421,2]
[384774628,1757532646519,-151.0,0.00016421,2]
[384774629,1757532646529,-151.0,0.00016421,2]
[384774630,1757532646538,-151.0,0.00016421,2]
[384774631,1757532646548,-151.0,0.00016421,2]
[384774632,1757532646557,-239.312782,0.00016421,2]
[384774633,1757532646568,-151.0,0.00016421,2]
[384774634,1757532646578,-480.0,0.00016438,2]
[384774635,1757532646587,-480.0,0.00016438,3]
[384774636,1757532646597,-500.0,0.00016438,2]
[384774637,1757532646606,-480.0,0.00016438,2]
[384774638,1757532646615,-480.0,0.00016438,2]
[384774639,1757532646624,-480.0,0.00016438,2]
[384774640,1757532646633,-151.0,0.00016438,2]
[384774641,1757532646643,-151.0,0.00016438,2]
[384774642,1757532646651,-151.0,0.00016438,2]
[384774643,1757532646660,-151.0,0.00016438,2]
[384774644,1757532646669,-151.0,0.00016438,2]
[384774645,1757532646679,-460.0,0.00016489,2]
[384774646,1757532646687,-2124.39774298,0.00016512,2]
[384774647,1757532646696,-480.0,0.00016712,2]
[384774649,1757532646706,-480.0,0.00016712,2]
[384774650,1757532646715,-480.0,0.00016712,2]
[384774651,1757532646724,-480.0,0.00016712,2]
[384774652,1757532646733,-1952.13497513,0.0001689,2]
[384774653,1757532646743,-480.0,0.00016986,2]
[384774654,1757532646752,-480.0,0.00016986,2]
[384774655,1757532646762,-480.0,0.00016986,2]
[384774656,1757532646772,-480.0,0.00016986,2]
[384774657,1757532646781,-560.0,0.00017037,2]
[384774658,1757532646791,-458.74023675,0.0001726,2]
[384774660,1757532646800,-480.0,0.0001726,2]
[384774661,1757532646810,-480.0,0.0001726,2]
[384774662,1757532646819,-480.0,0.0001726,2]
[384774663,1757532646828,-223.4,0.00017261,2]
[384774664,1757532646837,-196.0,0.00017288,2]
[384774665,1757532646846,-196.0,0.00017292,2]
[384774666,1757532646855,-158.07470497,0.000173,2]
[384774667,1757532646865,-500.0,0.000173,2]
[384774668,1757532646874,-500.0,0.000173,2]
[384774669,1757532646883,-500.0,0.000173,2]
[384774670,1757532646894,-500.0,0.000173,2]
[384774671,1757532646903,-500.0,0.000173,2]
[384774672,1757532646913,-571.30130751,0.000173,2]
[384774673,1757532646922,-500.0,0.000173,2]
[384774674,1757532646932,-500.0,0.000173,2]
[384774675,1757532646942,-500.0,0.000173,2]
[384774676,1757532646951,-500.0,0.000173,2]
[384774677,1757532646961,-500.0,0.000173,2]
[384774678,1757532646971,-500.0,0.000173,2]
[384774679,1757532646980,-500.0,0.000173,2]
[384774680,1757532646989,-500.0,0.000173,2]
[384774681,1757532646999,-196.0,0.00017319,2]
[384774682,1757532647009,-250.0,0.0001735,2]
[384774683,1757532647018,-196.0,0.00017388,2]
[384774684,1757532647027,-196.0,0.00017409,2]
[384774685,1757532647037,-196.0,0.00017487,2]
[384774686,1757532647046,-4027.0,0.00017512,2]
[384774687,1757532647055,-480.0,0.00017534,2]
[384774688,1757532647150,-480.0,0.00017534,2]
[384774689,1757532647160,-480.0,0.00017534,2]
[384774690,1757532647169,-660.0,0.00017585,2]
[384774691,1757532647179,-196.0,0.00017588,2]
[384774692,1757532647188,-196.0,0.00017646,2]
[384774693,1757532647197,-196.0,0.00017735,2]
[384774694,1757532647207,-196.0,0.00017762,2]
[384774695,1757532647216,-480.0,0.00017808,2]
[384774696,1757532647226,-480.0,0.00017808,2]
[384774697,1757532647235,-197.0,0.00017808,2]
[384774698,1757532647244,-409.83904837,0.00017824,2]
[384774699,1757532647254,-196.0,0.00017845,2]
[384774700,1757532647263,-1000.0,0.00017848,2]
[384774701,1757532647273,-1000.0,0.00017848,2]
[384774702,1757532647282,-1000.0,0.00017848,2]
[384774703,1757532647292,-1000.0,0.00017848,2]
[384774704,1757532647302,-500.0,0.00017848,2]
[384774705,1757532647311,-1000.0,0.00017848,2]
[384774706,1757532647321,-1000.0,0.00017848,2]
[384774707,1757532647331,-1000.0,0.00017848,2]
[384774708,1757532647340,-1000.0,0.00017848,2]
[384774709,1757532647350,-1000.0,0.00017848,2]
[384774710,1757532647359,-500.0,0.00017848,2]
[384774711,1757532647369,-196.0,0.00017938,2]
[384774712,1757532647378,-975.0,0.00017953,2]
[384774713,1757532647388,-634.0,0.00017953,2]
[384774714,1757532647403,-2154.0,0.00017953,2]
[384774715,1757532647412,-409.0,0.00017953,2]
[384774716,1757532647422,-151.0,0.00017953,2]
[384774717,1757532647432,-151.0,0.00017953,2]
[384774718,1757532647443,-151.0,0.00017953,2]
[384774719,1757532647453,-151.0,0.00017953,2]
[384774720,1757532647462,-151.0,0.00017953,2]
[384774721,1757532647473,-151.0,0.00017953,2]
[384774722,1757532647482,-151.0,0.00017953,2]
[384774723,1757532647492,-151.0,0.00017953,2]
[384774724,1757532647502,-151.0,0.00017953,2]
[384774725,1757532647511,-151.0,0.00017953,2]
[384774726,1757532647522,-151.0,0.00017953,2]
[384774727,1757532647532,-761.271209,0.00017953,2]
[384774728,1757532647542,-761.271209,0.00017953,2]
[384774729,1757532647551,-761.271209,0.00017953,2]
[384774730,1757532647561,-761.271209,0.00017953,2]
[384774731,1757532647571,-151.0,0.00017953,2]
[384774732,1757532647580,-151.0,0.00017953,2]
[384774733,1757532647590,-430.557456,0.00017953,2]
[384774734,1757532647600,-430.557456,0.00017953,2]
[384774735,1757532647609,-430.557456,0.00017953,2]
[384774736,1757532647619,-430.557456,0.00017953,2]
[384774737,1757532647629,-196.0,0.00017956,2]
[384774738,1757532647640,-196.0,0.00017967,2]
[384774739,1757532647649,-196.0,0.00018008,2]
[384774740,1757532647659,-4010.3433605,0.0001801,2]
[384774741,1757532647668,-196.0,0.00018016,2]
[384774742,1757532647678,-196.0,0.00018042,2]
[384774743,1757532647687,-480.0,0.00018082,2]
[384774744,1757532647697,-480.0,0.00018082,2]
[384774745,1757532647706,-196.0,0.000181,2]
[384774746,1757532647715,-196.0,0.00018104,2]
[384774747,1757532647725,-760.0,0.00018133,2]
[384774748,1757532647734,-984.40658775,0.00018168,2]
[384774749,1757532647743,-223.4,0.00018237,2]
[384774750,1757532647752,-1165.59704368,0.00018249,2]
[384774751,1757532647762,-480.0,0.00018356,2]
[384774752,1757532647771,-480.0,0.00018356,2]
[384774753,1757532647780,-1500.0,0.00018396,2]
[384774754,1757532647790,-1500.0,0.00018396,2]
[384774755,1757532647799,-1500.0,0.00018396,2]
[384774756,1757532647809,-1500.0,0.00018396,2]
[384774757,1757532647819,-1500.0,0.00018396,2]
[384774758,1757532647829,-1000.55863441,0.00018396,2]
[384774759,1757532647838,-151.0,0.00018428,2]
[384774760,1757532647848,-151.0,0.00018428,2]
[384774761,1757532647857,-151.0,0.00018428,2]
[384774762,1757532647867,-151.0,0.00018428,2]
[384774763,1757532647877,-151.0,0.00018428,2]
[384774764,1757532647887,-153.328275,0.00018428,2]
[384774765,1757532647897,-153.328275,0.00018428,2]
[384774766,1757532647906,-153.328275,0.00018428,2]
[384774767,1757532647915,-153.328275,0.00018428,2]
[384774768,1757532647925,-151.0,0.00018428,2]
[384774769,1757532647935,-231.517763,0.00018493,2]
[384774770,1757532647944,-196.0,0.00018618,2]
[384774771,1757532647954,-463.4881109,0.0001863,2]
[384774772,1757532647963,-480.0,0.0001863,2]
[384774773,1757532647972,-196.0,0.00018632,2]
[384774774,1757532647981,-196.0,0.00018667,2]
[384774775,1757532647990,-151.0,0.00018724,2]
[384774776,1757532647999,-151.0,0.00018724,2]
[384774777,1757532648009,-151.0,0.00018724,2]
[384774778,1757532648020,-196.0,0.00018724,2]
[384774779,1757532648029,-229.679895,0.00018751,2]
[384774780,1757532648039,-151.0,0.00018751,2]
[384774781,1757532648049,-151.0,0.00018751,2]
[384774782,1757532648058,-250.804762,0.00018751,2]
[384774783,1757532648067,-151.0,0.00018751,2]
[384774784,1757532648076,-151.0,0.00018751,2]
[384774785,1757532648086,-186.675728,0.00018751,2]
[384774786,1757532648095,-186.675728,0.00018751,2]
[384774787,1757532648104,-186.675728,0.00018751,2]
[384774788,1757532648114,-186.675728,0.00018751,2]
[384774789,1757532648124,-151.0,0.00018751,2]
[384774790,1757532648134,-196.0,0.00018751,2]
[384774791,1757532648143,-151.0,0.000188,2]
[384774792,1757532648153,-466.899093,0.000189,2]
[384774793,1757532648163,-162.698496,0.000189,2]
[384774794,1757532648172,-480.0,0.00018904,2]
[384774795,1757532648182,-788.3898903,0.00018944,2]
[384774796,1757532648192,-2000.0,0.00018944,2]
[384774797,1757532648202,-196.0,0.00018992,2]
[384774798,1757532648211,-160.03894072,0.00019014,2]
[384774799,1757532648220,-500.0,0.00019014,2]
[384774800,1757532648230,-500.0,0.00019014,2]
[384774801,1757532648239,-570.30542376,0.00019014,2]
[384774802,1757532648250,-500.2389297,0.00019014,2]
[384774803,1757532648259,-500.0,0.00019014,2]
[384774804,1757532648268,-500.0,0.00019014,2]
[384774805,1757532648278,-196.01094553,0.00019014,2]
[384774806,1757532648288,-9600.30936529,0.00019074,2]
[384774807,1757532648297,-151.0,0.00019178,2]
[384774808,1757532648306,-151.0,0.00019178,2]
[384774809,1757532648316,-151.0,0.00019178,2]
[384774810,1757532648325,-151.0,0.00019178,2]
[384774811,1757532648334,-151.0,0.00019178,2]
[384774812,1757532648344,-151.0,0.00019178,2]
[384774813,1757532648353,-151.0,0.00019178,2]
[384774814,1757532648363,-183.096074,0.00019178,2]
[384774815,1757532648372,-480.0,0.00019178,2]
[384774816,1757532648381,-5000.0,0.00019178,2]
[384774817,1757532648391,-223.4,0.00019213,2]
[384774818,1757532648404,-500.0,0.00019367,2]
[384774819,1757532648413,-500.0,0.00019367,2]
[384774820,1757532648422,-480.0,0.00019452,2]
[384774821,1757532648432,-2500.0,0.00019492,2]
[384774822,1757532648443,-1000.0,0.00019562,2]
[384774823,1757532648453,-467.64828555,0.00019562,2]
[384774824,1757532648462,-480.0,0.00019726,2]
[384774825,1757532648472,-480.0,0.00019899,2]
[384774826,1757532648483,-480.0,0.00019899,2]
[384774827,1757532648492,-480.0,0.00019899,2]
[384774828,1757532648502,-480.0,0.00019899,2]
[384774829,1757532648511,-151.0,0.000199,2]
[384774830,1757532648521,-597.26678715,0.00019915,2]
[384774831,1757532648530,-1000.0,0.00019915,2]
[384774832,1757532648540,-409.83904837,0.00019987,2]
[384774833,1757532648558,-200.0,0.0002,2]
[384774834,1757532648569,-201.4889751,0.0002,2]
[384774835,1757532648580,-383.26,0.0002,2]
[384774836,1757532648590,-743.58479782,0.00020023,4]
[384774837,1757532648600,-3000.0,0.0002004,2]
[384774838,1757532648610,-760.02176344,0.0002011,2]
[384774839,1757532648619,-480.0,0.00020173,2]
[384774840,1757532648629,-480.0,0.00020173,2]
[384774841,1757532648638,-480.0,0.00020173,2]
[384774842,1757532648648,-167.212207,0.00020187,2]
[384774843,1757532648658,-223.4,0.00020188,2]
[384774844,1757532648667,-200.0,0.000202,2]
[384774845,1757532648677,-151.0,0.000202,4]
[384774846,1757532648687,-151.0,0.000202,2]
[384774847,1757532648697,-151.0,0.000202,2]
[384774848,1757532648707,-151.0,0.00020327,2]
[384774849,1757532648717,-274.599393,0.00020327,2]
[384774850,1757532648726,-274.599393,0.00020327,2]
[384774851,1757532648735,-274.599393,0.00020327,2]
[384774852,1757532648745,-274.599393,0.00020327,2]
[384774853,1757532648755,-151.0,0.00020327,2]
[384774854,1757532648765,-151.0,0.00020327,2]
[384774855,1757532648775,-151.0,0.00020327,2]
[384774856,1757532648785,-183.986532,0.00020327,2]
[384774857,1757532648795,-183.986532,0.00020327,2]
[384774858,1757532648805,-183.986532,0.00020327,2]
[384774859,1757532648815,-183.986532,0.00020327,2]
[384774860,1757532648825,-151.0,0.00020327,2]
[384774861,1757532648834,-151.0,0.00020327,2]
[384774862,1757532648845,-151.0,0.00020327,2]
[384774863,1757532648854,-151.0,0.00020327,2]
[384774864,1757532648864,-151.0,0.00020327,2]
[384774865,1757532648873,-151.0,0.00020327,2]
[384774866,1757532648883,-151.0,0.00020327,2]
[384774867,1757532648892,-200.0,0.00020402,2]
[384774868,1757532648904,-600.0,0.00020431,20]
[384774869,1757532648914,-480.0,0.00020447,2]
[384774870,1757532648923,-300.44,0.00020447,2]
[384774871,1757532648933,-623.40779519,0.00020572,2]
[384774872,1757532648943,-3500.0,0.00020588,2]
[384774873,1757532648953,-200.0,0.00020606,2]
[384774874,1757532648963,-1165.59704368,0.00020625,2]
[384774875,1757532648973,-1000.0,0.00020689,5]
[384774876,1757532648982,-199.927657,0.00020755,2]
[384774877,1757532648993,-151.0,0.00020755,2]
[384774878,1757532649002,-151.0,0.00020755,2]
[384774879,1757532649012,-151.0,0.00020755,2]
[384774880,1757532649022,-151.0,0.00020755,2]
[384774881,1757532649032,-3937.62635099,0.00020809,2]
[384774882,1757532649041,-474.839,0.00020812,2]
[384774883,1757532649050,-172.68415965,0.00020812,2]
[384774884,1757532649060,-200.0,0.00020812,2]
[384774885,1757532649070,-409.0,0.00020953,2]
[384774886,1757532649080,-151.0,0.00021,3]
[384774887,1757532649090,-466.899093,0.00021019,2]
[384774888,1757532649099,-162.698496,0.00021019,2]
[384774889,1757532649108,-151.0,0.00021059,2]
[384774890,1757532649118,-151.0,0.00021059,2]
[384774891,1757532649127,-151.0,0.00021059,2]
[384774892,1757532649137,-285.064721,0.00021059,2]
[384774893,1757532649146,-151.0,0.00021059,2]
[384774894,1757532649156,-151.0,0.00021059,2]
[384774895,1757532649170,-151.0,0.00021059,2]
[384774896,1757532649180,-761.271209,0.00021059,2]
[384774897,1757532649189,-761.271209,0.00021059,2]
[384774898,1757532649199,-761.271209,0.00021059,2]
[384774899,1757532649209,-761.271209,0.00021059,2]
[384774900,1757532649219,-151.0,0.00021059,2]
[384774901,1757532649228,-151.0,0.00021059,2]
[384774902,1757532649238,-430.557456,0.00021059,2]
[384774903,1757532649247,-430.557456,0.00021059,2]